{"text_format":"1","workbook":"xlsx","n_sheets":7,"sheets":["nápověda","strana 1","strana 2","strana 3","strana 4","strana 5","pomocný list"],"not_rendered":{"charts":2,"images":0,"macros":1,"external_links":0,"defined_names":5,"comments":6,"pivot_tables":0},"unopened":[],"bounds":{"document_bytes":16777216,"sheet_cells":100000,"rows_first":2000,"rows_last":500,"rows_between":2000,"halvings":0,"cell_chars":16384,"cell_head_chars":4096},"cells_cut":0,"cells_raw":0,"read":"whole","date_system":"1900"}

{"sheet":"nápověda","index":0,"n_rows":33,"n_cols":4,"rows_kept":33,"cut":false,"hidden":false,"merged":[]}
["Nápověda"]
[]
["upozornění"]
[]
[null,"Měření průvzdušnosti obálky budovy v rámci programu Nová zelená úsporám (dále Program) "]
[null,"se řídí pravidly podle Metodického pokynu, který pro tyto účely vydal SFŽP."]
[]
[]
[]
[]
[null,"Bezchybná realizace měření a vyplnění protokolu vyžaduje znalost příslušného Metodického pokynu."]
[]
[]
["barvy buněk a jejich význam"]
[]
[null,null,null,"Do bílých buněk se vyplňují vstupní údaje"]
[]
[null,null,null,"V zelených polích jsou předvyplněny implicitní číselné hodnoty nebo textové informace"]
[null,null,null,"Předvyplněné implicitní hodnoty se zobrazí po dvojitém poklepání myší"]
[null,null,null,"Požadovanou hodnotu vyberete buď tak, že na ní poklepete myší"]
[null,null,null,"nebo tak, že poklepete na šipku vedle pole (zobrazí se po klepnutí na zelené pole)"]
[]
[]
[]
[null,"***",null,"V buňkách se symbolem \"***\" jsou předvyplněné vzorce."]
[null,null,null,"Pokud vzorec vrátí nesprávnou hodnotu nebo v buňce zůstane symbol \"***\", "]
[null,null,null,"můžete její obsah přepsat"]
[]
[null,null,null,"Upozornění: zápisem vlastních hodnot přepíšete předvyplněné vzorce."]
[]
[null,null,null,"Buňky s červeným trojúhelníkem jsou opatřeny komentářem. "]
[null,null,null,"Komentář zobrazíte tak, že přejedete přes buňku kurzorem myši, aniž byste na buňku "]
[null,null,null,"poklepali."]

{"sheet":"strana 1","index":1,"n_rows":106,"n_cols":7,"rows_kept":106,"cut":false,"hidden":false,"merged":[[40,6,41,6],[41,0,41,3],[40,0,40,3],[42,0,42,3],[40,4,41,4],[40,5,41,5]]}
["Protokol o měření průvzdušnosti",null,null,null,null,null,"NZÚ"]
[]
["budova"]
["budova"]
["adresa"]
[]
[]
["číslo žádosti o podporu"]
["číslo listu vlastnictví"]
["číslo parcely, KÚ"]
["rok výstavby"]
["datum měření"]
[]
["žadatel (majitel / spolumajitel budovy)"]
["jméno a příjmení"]
["adresa"]
[]
[]
["telefon"]
["e-mail"]
[]
["zhotovitel měření"]
["jméno a příjmení"]
["název (organizace)"]
["adresa"]
[]
[]
["IČ"]
["telefon"]
["e-mail"]
[]
["projektová dokumentace použitá pro přípravu testu"]
["název "]
[]
["autor"]
[]
["datum"]
["další identifikační údaje"]
[]
["výsledek měření a vyhodnocení"]
["limitní hodnota intenzity výměny vzduchu při 50 Pa",null,null,null,"n50,N","[h-1]",{"$f":"INDEX(E102:E105,F106,1)","v":""}]
["klikni a vyber ..."]
["naměřená hodnota intenzity výměny vzduchu při 50 Pa\npodle ČSN EN ISO 9972, metoda 3 podle Metodického pokynu:",null,null,null,"n50","[h-1]"]
[]
[{"$f":"IF(OR(G41=\"\",G43=\"\"),\"výsledek měření nelze vyhodnotit\",IF(G43>G41,\"výsledek měření nesplňuje limitní hodnotu,\",\"výsledek měření splňuje limitní hodnotu,\"))","v":"výsledek měření nelze vyhodnotit"},null,null,null,"n50",{"$f":"IF(OR(G41=\"\",G43=\"\"),\"≤ ? ≥\",IF(G43>G41,\">\",\"≤\"))","v":"≤ ? ≥"},"n50,N"]
["Zhotovitel měření splňuje kvalifikační předpoklady dle Metodického pokynu."]
["Svým podpisem zhotovitel měření potvrzuje, že všechny uvedené údaje jsou pravdivé"]
["datum, podpis a razítko zhotovitele měření:"]
[]
[]
[]
[]
[]
[]
[]
[]
[]
[]
[]
[]
[]
[]
[]
[]
[]
[]
[]
[]
[]
[]
[]
[]
[]
[]
[]
[]
[]
[]
[]
[]
[]
[]
[]
[]
[]
[]
[]
[]
[]
[]
[]
[]
[]
[]
[]
[]
[]
[]
["pomocné údaje - neměnit!"]
[]
["limitní hodnota n50,N",null,null,null,"n50,N"]
["klikni a vyber ...",null,null,null,{"$f":"\"\"","v":""},1]
["Výstavba RD s nízkou energ. náročností - podoblast B0",null,null,null,1.04999,2]
["Výstavba RD s velmi nízkou energ. náročností - podoblast B1 nebo B2",null,null,null,0.64998999999999996,3]
["Instalace systémů řízeného větrání se ZZT - podoblast C4",null,null,null,2.5499900000000002,4]
["nastavení buňky A42",null,null,null,null,{"$f":"MATCH(A42,A102:A106,FALSE)","v":1}]

{"sheet":"strana 2","index":2,"n_rows":118,"n_cols":4,"rows_kept":118,"cut":false,"hidden":false,"merged":[[31,1,31,5],[38,1,38,5]]}
["budova"]
["budova",{"$f":"IF('strana 1'!B4<>\"\",'strana 1'!B4,\"***\")","v":"***"}]
["adresa",{"$f":"IF('strana 1'!B5<>\"\",'strana 1'!B5,\"***\")","v":"***"}]
[null,{"$f":"IF('strana 1'!B6<>\"\",'strana 1'!B6,\"***\")","v":"***"}]
[null,{"$f":"IF('strana 1'!B7<>\"\",'strana 1'!B7,\"***\")","v":"***"}]
[]
["měřená část budovy"]
["měřená část budovy"]
["komentář k volbě rozsahu měřené části"]
[]
[]
[]
[]
[]
["rozměry - vztažné hodnoty"]
["čistá podlahová plocha (měřená část)","AF","[m2]"]
["objem vnitřního vzduchu (měřená část)","V","[m3]"]
["komentář k výpočtu vztažných hodnot"]
[]
[]
[]
[]
[]
["systém vytápění, větrání a chlazení"]
["popis systému vytápění,"]
["větrání a chlazení"]
[]
[]
[]
[]
["okamžik měření"]
["okamžik měření","klikni a vyber ..."]
["zdůvodnění, komentář"]
[]
[]
[]
[]
["stav SVO v okamžiku měření"]
["stav SVO v okamžiku měření","klikni a vyber ..."]
["komentář ke stavu SVO"]
[]
[]
[]
[]
[]
["stav měřené části budovy v okamžiku měření"]
["součást budovy","plánováno\nv projektu?","osazeno v budově?","komentář"]
["všechny výplně otvorů "]
["prvky s vlivem na vzduchotěsnost"]
["rozvody s vlivem na vzduchotěsnost"]
["spalovací spotřebiče"]
["VZT jednotka"]
["zařízení pro lokální odtah vzduchu"]
["sušička prádla"]
["centrální vysavač"]
["další součásti / prvky / zařízení"]
[]
[]
[]
[]
[]
[]
[]
[]
[]
[]
[]
[]
[]
[]
[]
[]
[]
[]
[]
[]
[]
[]
[]
[]
[]
[]
[]
[]
[]
[]
[]
[]
[]
[]
[]
[]
[]
[]
[]
[]
[]
[]
[]
["pomocné údaje - neměnit!"]
[]
["stav budovy v okamžiku měření"]
["klikni a vyber ..."]
["novostavba pasivního RD, měření v průběhu výstavby (o.p.B)"]
["novostavba pasivního RD, měření po dokončení výstavby (o.p.B)"]
["stávající budova v původním stavu, m. před rekonstrukcí (o.p.C4)"]
["stávající budova, měření v průběhu rekonstrukce (o.p. C4)"]
["stávající budova, měření po dokončení rekonstrukce (o.p. C4)"]
[]
["stav SVO v okamžiku měření"]
["klikni a vyber ..."]
["SVO nedokončený"]
["SVO zcela dokončený"]
[]
["plánováno v projektu_/osazeno v budově?"]
["klikni a vyber ..."]
["ano"]
["ne"]

{"sheet":"strana 3","index":3,"n_rows":111,"n_cols":6,"rows_kept":111,"cut":false,"hidden":false,"merged":[]}
["budova"]
["budova",{"$f":"IF('strana 1'!B4<>\"\",'strana 1'!B4,\"***\")","v":"***"}]
["adresa",{"$f":"IF('strana 1'!B5<>\"\",'strana 1'!B5,\"***\")","v":"***"}]
[null,{"$f":"IF('strana 1'!B6<>\"\",'strana 1'!B6,\"***\")","v":"***"}]
[null,{"$f":"IF('strana 1'!B7<>\"\",'strana 1'!B7,\"***\")","v":"***"}]
[]
["příprava budovy před měřením"]
["metoda měření podle ČSN EN ISO 9972","metoda 3 - pravidla stanovuje Metodický pokyn SFŽP"]
["odchylky od zvolené metody"]
[]
[]
[]
[]
[]
["poloha prostředků pro utěsnění otvorů"]
["systému mechanického větrání"]
[]
["prvek","plánován \nv projektu?","přítomen\nv budově?","průtok vzduchu započítán do tepel. ztrát?","způsob přípravy","komentář"]
["výlez na půdu",null,null,"---"]
["výlez / vstup do nevytápěného prostoru",null,null,"---"]
["poštovní schránky",null,null,"---"]
["prostupy prvků chráničkou/průchodkou před dokončením budovy",null,null,"---"]
["dvířka spalovacích spotřebičů",null,null,"---"]
["komín – komínový průduch",null,null,"---"]
["komín – otvory v plášti",null,null,"---"]
["komín – vymetací dvířka",null,null,"---"]
["kanalizační potrubí",null,null,"---"]
["potrubí ostatních rozvodů \npřed dokončením budovy (rozvod vody, plynu apod.)",null,null,"---"]
["přívod vzduchu pro spalovací spotřebiče",null,null,"---"]
["požární otvory pro odvod dýmu, požární klapky",null,null,"---"]
["výfukové potrubí sušičky prádla",null,null,"---"]
["větrací otvory spížních skříní",null,null,"---"]
["výfukové potrubí centrálního vysavače",null,null,"---"]
["okna, střešní okna, francouzská okna"]
["dveře"]
["nasávací VZT potrubí"]
["výfukové VZT potrubí"]
["nasávací potrubí zemního výměníku"]
["odtah vzduchu ze sociálních zařízení"]
["výfukové potrubí kuchyňské digestoře"]
["větrací štěrbiny oken"]
["větrací štěrbiny střešních oken"]
["jiné otvory pro přirozené větrání, odvod tepla apod."]
["další prvky:"]
[]
[]
[]
[]
[]
[]
[]
[]
[]
[]
[]
[]
[]
[]
[]
[]
[]
[]
[]
[]
[]
[]
[]
[]
[]
[]
[]
[]
[]
[]
[]
[]
[]
[]
[]
[]
[]
[]
[]
[]
[]
[]
[]
[]
[]
[]
[]
[]
[]
[]
[]
[]
[]
[]
[]
["pomocné údaje - neměnit!"]
[]
["přítomnost prvku v budově/v projektu/průtok vzduchu započítán..."]
["klikni a vyber ..."]
["ano"]
["ne"]
[]
["způsob přípravy"]
["klikni a vyber ..."]
["utěsněno"]
["uzavřeno"]
["bez úprav"]

{"sheet":"strana 4","index":4,"n_rows":51,"n_cols":8,"rows_kept":51,"cut":false,"hidden":false,"merged":[[21,4,21,5],[22,4,22,5],[23,4,23,5],[21,6,21,7],[22,6,22,7],[23,6,23,7],[15,4,15,5],[16,4,16,5],[17,4,17,5],[15,6,15,7],[16,6,16,7],[17,6,17,7]]}
["budova"]
["budova",null,null,{"$f":"IF('strana 1'!B4<>\"\",'strana 1'!B4,\"***\")","v":"***"}]
["adresa",null,null,{"$f":"IF('strana 1'!B5<>\"\",'strana 1'!B5,\"***\")","v":"***"}]
[null,null,null,{"$f":"IF('strana 1'!B6<>\"\",'strana 1'!B6,\"***\")","v":"***"}]
[null,null,null,{"$f":"IF('strana 1'!B7<>\"\",'strana 1'!B7,\"***\")","v":"***"}]
[]
["měření podle ČSN EN ISO 9972"]
["datum měření",null,null,{"$f":"IF('strana 1'!B12<>\"\",'strana 1'!B12,\"***\")","v":"***"}]
["vnitřní teplota",null,null,"qint","[°C]"]
["venkovní teplota",null,null,"qe","[°C]"]
["síla větru",null,null,"s","[°Beaufort]"]
["barometrický tlak",null,null,"pbar","[Pa]"]
[]
["přirozený tlakový rozdíl - před začátkem měření"]
[null,null,null,null,"měření podtlakem",null,"měření přetlakem"]
["průměr kladných hodnot",null,"Dp0,1+","[Pa]"]
["průměr záporných hodnot",null,"Dp0,1-","[Pa]"]
["průměr všech hodnot",null,"Dp0,1","[Pa]"]
[]
["přirozený tlakový rozdíl - po skončení měření"]
[null,null,null,null,"měření podtlakem",null,"měření přetlakem"]
["průměr kladných hodnot",null,"Dp0,2+","[Pa]"]
["průměr záporných hodnot",null,"Dp0,2-","[Pa]"]
["průměr všech hodnot",null,"Dp0,2","[Pa]"]
[]
["naměřené hodnoty"]
[null,null,null,null,"měření podtlakem",null,"měření přetlakem"]
[null,null,null,null,"tlak. rozdíl","objem. tok","tlak. rozdíl","objem. tok"]
[null,null,null,null,"Dp [Pa]","qenv [m3/h]","Dp [Pa]","qenv [m3/h]"]
["1. měřicí bod (dvojice naměřených hodnot)"]
["2. měřicí bod (dvojice naměřených hodnot)"]
["3. měřicí bod (dvojice naměřených hodnot)"]
["4. měřicí bod (dvojice naměřených hodnot)"]
["5. měřicí bod (dvojice naměřených hodnot)"]
["6. měřicí bod (dvojice naměřených hodnot)"]
["7. měřicí bod (dvojice naměřených hodnot)"]
["8. měřicí bod (dvojice naměřených hodnot)"]
["9. měřicí bod (dvojice naměřených hodnot)"]
["10. měřicí bod (dvojice naměřených hodnot)"]
[]
[null,null,null,null,"měření"," podtlakem","měření","přetlakem"]
[null,null,null,null,"hodnota","int. spoleh.","hodnota","int. spoleh."]
["součinitel proudění",null,"Cenv","[m3/(h.Pan)]"]
["součinitel proudění",null,"CL","[m3/(h.Pan)]"]
["exponent proudění",null,"n","[ - ]"]
["koeficient determinace",null,"r2","[ - ]",null,"---",null,"---"]
[]
["číselný výsledek měření"]
[null,null,null,null,null,"měření podtlakem","měření přetlakem","průměr"]
["průtok vzduchu při 50 Pa",null,null,"q50","[m3/h]"]
["intenzita výměny vzduchu při 50 Pa",null,null,"n50","[h-1]"]

{"sheet":"strana 5","index":5,"n_rows":27,"n_cols":5,"rows_kept":27,"cut":false,"hidden":false,"merged":[[19,2,19,3],[19,4,19,5]]}
["budova"]
["budova",{"$f":"IF('strana 1'!B4<>\"\",'strana 1'!B4,\"***\")","v":"***"}]
["adresa",{"$f":"IF('strana 1'!B5<>\"\",'strana 1'!B5,\"***\")","v":"***"}]
[null,{"$f":"IF('strana 1'!B6<>\"\",'strana 1'!B6,\"***\")","v":"***"}]
[null,{"$f":"IF('strana 1'!B7<>\"\",'strana 1'!B7,\"***\")","v":"***"}]
[]
["měřicí zařízení"]
["výrobce"]
["typ"]
["datum posledního ověření /  kalibrace"]
["poloha měřicího zařízení"]
["komentář, zůvodnění"]
[]
[]
[]
[]
[]
["postup měření a zpracování výsledků"]
[null,null,"měření podtlakem",null,"měření přetlakem"]
["počet odebraných odlehlých hodnot"]
["komentář k postupu měření"]
[]
[]
[]
[]
[]
["grafický výsledek měření"]

{"sheet":"pomocný list","index":6,"n_rows":57,"n_cols":8,"rows_kept":57,"cut":false,"hidden":true,"merged":[]}
["budova"]
["budova",null,null,{"$f":"IF('strana 1'!B4<>\"\",'strana 1'!B4,\"***\")","v":"***"}]
["adresa",null,null,{"$f":"IF('strana 1'!B5<>\"\",'strana 1'!B5,\"***\")","v":"***"}]
[null,null,null,{"$f":"IF('strana 1'!B6<>\"\",'strana 1'!B6,\"***\")","v":"***"}]
[null,null,null,{"$f":"IF('strana 1'!B7<>\"\",'strana 1'!B7,\"***\")","v":"***"}]
[]
["měření"]
["datum měření",null,null,{"$f":"IF('strana 4'!D8<>\"\",'strana 4'!D8,\"***\")","v":"***"}]
[]
["zhotovitel měření"]
["jméno",null,{"$f":"IF('strana 1'!B23<>\"\",'strana 1'!B23,\"***\")","v":"***"}]
["název (organizace)",null,{"$f":"IF('strana 1'!B24<>\"\",'strana 1'!B24,\"***\")","v":"***"}]
["adresa",null,{"$f":"IF('strana 1'!B25<>\"\",'strana 1'!B25,\"***\")","v":"***"}]
[null,null,{"$f":"IF('strana 1'!B26<>\"\",'strana 1'!B26,\"***\")","v":"***"}]
[null,null,{"$f":"IF('strana 1'!B27<>\"\",'strana 1'!B27,\"***\")","v":"***"}]
["IČ",null,{"$f":"IF('strana 1'!B28<>\"\",'strana 1'!B28,\"***\")","v":"***"}]
["telefon",null,{"$f":"IF('strana 1'!B29<>\"\",'strana 1'!B29,\"***\")","v":"***"}]
["e-mail",null,{"$f":"IF('strana 1'!B30<>\"\",'strana 1'!B30,\"***\")","v":"***"}]
[]
[]
["naměřené hodnoty"]
["podtlak v budově",null,null,"přetlak  v budově"]
["tlak. rozdíl","objem. tok",null,"tlak. rozdíl","objem. tok"]
["Dp [Pa]","qenv [m3]",null,"Dp [Pa]","qenv [m3]"]
[{"$f":"IF('strana 4'!E30<>\"\",ABS('strana 4'!E30),0.01)","v":0.01},{"$f":"IF('strana 4'!F30<>\"\",'strana 4'!F30,1)","v":1},null,{"$f":"IF('strana 4'!G30<>\"\",ABS('strana 4'!G30),0.01)","v":0.01},{"$f":"IF('strana 4'!H30<>\"\",'strana 4'!H30,1)","v":1}]
[{"$f":"IF('strana 4'!E31<>\"\",ABS('strana 4'!E31),0.01)","v":0.01},{"$f":"IF('strana 4'!F31<>\"\",'strana 4'!F31,1)","v":1},null,{"$f":"IF('strana 4'!G31<>\"\",ABS('strana 4'!G31),0.01)","v":0.01},{"$f":"IF('strana 4'!H31<>\"\",'strana 4'!H31,1)","v":1}]
[{"$f":"IF('strana 4'!E32<>\"\",ABS('strana 4'!E32),0.01)","v":0.01},{"$f":"IF('strana 4'!F32<>\"\",'strana 4'!F32,1)","v":1},null,{"$f":"IF('strana 4'!G32<>\"\",ABS('strana 4'!G32),0.01)","v":0.01},{"$f":"IF('strana 4'!H32<>\"\",'strana 4'!H32,1)","v":1}]
[{"$f":"IF('strana 4'!E33<>\"\",ABS('strana 4'!E33),0.01)","v":0.01},{"$f":"IF('strana 4'!F33<>\"\",'strana 4'!F33,1)","v":1},null,{"$f":"IF('strana 4'!G33<>\"\",ABS('strana 4'!G33),0.01)","v":0.01},{"$f":"IF('strana 4'!H33<>\"\",'strana 4'!H33,1)","v":1}]
[{"$f":"IF('strana 4'!E34<>\"\",ABS('strana 4'!E34),0.01)","v":0.01},{"$f":"IF('strana 4'!F34<>\"\",'strana 4'!F34,1)","v":1},null,{"$f":"IF('strana 4'!G34<>\"\",ABS('strana 4'!G34),0.01)","v":0.01},{"$f":"IF('strana 4'!H34<>\"\",'strana 4'!H34,1)","v":1}]
[{"$f":"IF('strana 4'!E35<>\"\",ABS('strana 4'!E35),0.01)","v":0.01},{"$f":"IF('strana 4'!F35<>\"\",'strana 4'!F35,1)","v":1},null,{"$f":"IF('strana 4'!G35<>\"\",ABS('strana 4'!G35),0.01)","v":0.01},{"$f":"IF('strana 4'!H35<>\"\",'strana 4'!H35,1)","v":1}]
[{"$f":"IF('strana 4'!E36<>\"\",ABS('strana 4'!E36),0.01)","v":0.01},{"$f":"IF('strana 4'!F36<>\"\",'strana 4'!F36,1)","v":1},null,{"$f":"IF('strana 4'!G36<>\"\",ABS('strana 4'!G36),0.01)","v":0.01},{"$f":"IF('strana 4'!H36<>\"\",'strana 4'!H36,1)","v":1}]
[{"$f":"IF('strana 4'!E37<>\"\",ABS('strana 4'!E37),0.01)","v":0.01},{"$f":"IF('strana 4'!F37<>\"\",'strana 4'!F37,1)","v":1},null,{"$f":"IF('strana 4'!G37<>\"\",ABS('strana 4'!G37),0.01)","v":0.01},{"$f":"IF('strana 4'!H37<>\"\",'strana 4'!H37,1)","v":1}]
[{"$f":"IF('strana 4'!E38<>\"\",ABS('strana 4'!E38),0.01)","v":0.01},{"$f":"IF('strana 4'!F38<>\"\",'strana 4'!F38,1)","v":1},null,{"$f":"IF('strana 4'!G38<>\"\",ABS('strana 4'!G38),0.01)","v":0.01},{"$f":"IF('strana 4'!H38<>\"\",'strana 4'!H38,1)","v":1}]
[{"$f":"IF('strana 4'!E39<>\"\",ABS('strana 4'!E39),0.01)","v":0.01},{"$f":"IF('strana 4'!F39<>\"\",'strana 4'!F39,1)","v":1},null,{"$f":"IF('strana 4'!G39<>\"\",ABS('strana 4'!G39),0.01)","v":0.01},{"$f":"IF('strana 4'!H39<>\"\",'strana 4'!H39,1)","v":1}]
[]
["zpracované výsledky"]
[null,null,null,null,null,"podtlak","přetlak"]
["součinitel proudění",null,null,"Cenv","[m3/(h.Pan)]",{"$f":"IF('strana 4'!E43<>\"\",'strana 4'!E43,\"***\")","v":"***"},{"$f":"IF('strana 4'!G43<>\"\",'strana 4'!G43,\"***\")","v":"***"}]
["exponent proudění",null,null,"n","[ - ]",{"$f":"IF('strana 4'!E45<>\"\",'strana 4'!E45,\"***\")","v":"***"},{"$f":"IF('strana 4'!G45<>\"\",'strana 4'!G45,\"***\")","v":"***"}]
[]
["podtlak v budově",null,null,"přetlak  v budově"]
["tlak. rozdíl","objem. tok",null,"tlak. rozdíl","objem. tok"]
["Dp [Pa]","qenv [m3]",null,"Dp [Pa]","qenv [m3]"]
[1,{"$f":"IF(OR(OR($F$38=\"\",$F$38=\"***\"),OR($F$39=\"\",$F$39=\"***\")),1,$F$38*A44^$F$39)","v":1},null,1,{"$f":"IF(OR(OR($G$38=\"\",$G$38=\"***\"),OR($G$39=\"\",$G$39=\"***\")),1,$G$38*D44^$G$39)","v":1}]
[10,{"$f":"IF(OR(OR($F$38=\"\",$F$38=\"***\"),OR($F$39=\"\",$F$39=\"***\")),1,$F$38*A45^$F$39)","v":1},null,10,{"$f":"IF(OR(OR($G$38=\"\",$G$38=\"***\"),OR($G$39=\"\",$G$39=\"***\")),1,$G$38*D45^$G$39)","v":1}]
[20,1,null,20,1]
[30,1,null,30,1]
[40,1,null,40,1]
[50,1,null,50,1]
[60,1,null,60,1]
[70,1,null,70,1]
[80,1,null,80,1]
[90,1,null,90,1]
[100,1,null,100,1]
[]
["průtok vzduchu při 50 Pa",null,null,"q50","[m3/h]",{"$f":"B49","v":1},{"$f":"E49","v":1},{"$f":"IF(OR(OR(F56=\"\",F56=\"***\"),OR(G56=\"\",G56=\"***\")),\"***\",0.5*(F56+G56))","v":1}]
["průtok vzduchu při 50 Pa - kontrola",null,null,"q50","[m3/h]",{"$f":"IF('strana 4'!F50<>\"\",'strana 4'!F50,\"***\")","v":"***"},{"$f":"IF('strana 4'!G50<>\"\",'strana 4'!G50,\"***\")","v":"***"},{"$f":"IF('strana 4'!H50<>\"\",'strana 4'!H50,\"***\")","v":"***"}]